bitfinex/quotes_SOLUSD_20240716
["timestamp","ask_amount","ask_price","bid_price","bid_amount"]
[1721090974492,6.2837,159.15,159.1,17.0053528]
[1721090974707,20.0,159.14,159.1,17.0053528]
[1721090976071,18.85,159.17,159.1,17.0053528]
[1721090976072,6.2826,159.17,159.1,17.0053528]
[1721090976279,20.0,159.16,159.1,17.0053528]
[1721090976472,6.2834,159.15,159.1,17.0053528]
[1721090977188,6.2839,159.14,159.1,17.0053528]
[1721090977593,38.85,159.16,159.1,17.0053528]
[1721090978099,18.85,159.14,159.1,17.0053528]
[1721090978766,30.29,159.15,159.1,17.0053528]
[1721090979091,26.2837,159.14,159.1,17.0053528]
[1721090979678,6.2841,159.13,159.1,17.0053528]
[1721090980301,25.1341,159.13,159.1,17.0053528]
[1721090981293,6.2846,159.12,159.1,0.8200528]
[1721090981493,26.2849,159.11,159.1,0.8200528]
[1721090981681,6.2849,159.11,159.1,0.8200528]
[1721090981883,20.0,159.11,159.1,0.8200528]
[1721090982395,45.1349,159.11,159.1,0.8200528]
[1721090983171,90.1349,159.11,159.1,0.8200528]
[1721090984290,45.1349,159.11,159.1,0.8200528]
[1721090984992,38.85,159.11,159.1,0.8200528]
[1721090985800,49.14,159.15,159.1,0.8200528]
[1721090986009,6.2838,159.14,159.1,0.8200528]
[1721090986216,25.1338,159.14,159.1,0.8200528]
[1721090986387,6.2843,159.13,159.1,0.8200528]
[1721090986787,25.1343,159.13,159.1,0.8200528]
[1721090987404,6.2849,159.11,159.1,0.8200528]
[1721090987714,6.2846,159.12,159.1,0.8200528]
[1721090988007,25.1346,159.12,159.1,0.8200528]
[1721090988202,25.1349,159.11,159.1,0.8200528]
[1721090989601,90.1349,159.11,159.1,0.8200528]
[1721090991107,45.1349,159.11,159.1,0.8200528]
[1721090991510,90.1349,159.11,159.1,0.8200528]
[1721090991981,45.1349,159.11,159.1,0.8200528]
[1721090992186,26.2849,159.11,159.1,0.8200528]
[1721090992497,45.1349,159.11,159.1,0.8200528]
[1721090994410,90.1349,159.11,159.1,0.8200528]
[1721091000299,105.3449,159.11,159.1,0.8200528]
[1721091000606,6.2872,159.06,159.02,15.0495]
[1721091000812,15.21,159.03,159.02,15.0495]
[1721091001010,60.3481,159.03,159.02,15.0495]
[1721091001518,60.3481,159.03,158.98,15.231]
[1721091001902,15.21,159.0,158.98,15.231]
[1721091002317,45.1381,159.03,158.98,15.231]
[1721091002990,6.2889,159.01,158.98,15.231]
[1721091003399,18.85,159.02,158.98,15.231]
[1721091003605,20.0,159.03,158.98,15.231]
[1721091003888,6.288,159.04,158.98,15.231]
[1721091004095,26.2881,159.03,158.98,15.231]
[1721091004499,45.1381,159.03,158.98,15.231]
[1721091005216,38.85,159.03,158.98,15.231]
[1721091005518,18.85,159.02,158.98,15.231]
[1721091005894,20.0,159.03,158.98,15.231]
[1721091006386,6.2873,159.06,158.98,15.231]
[1721091006586,20.0,159.05,158.98,15.231]
[1721091007118,15.7153,159.09,158.98,15.231]
[1721091007119,6.2857,159.09,158.98,16.48891922]
[1721091007414,30.44,159.1,159.0,15.9771]
[1721091007615,25.1368,159.07,159.0,15.9771]
[1721091007801,6.2869,159.06,159.0,15.9771]
[1721091007999,25.1373,159.05,159.0,15.9771]
[1721091008199,30.44,159.1,159.0,15.9771]
[1721091008412,6.2874,159.05,159.0,15.9771]
[1721091008588,25.1377,159.04,159.0,15.9771]
[1721091009086,30.44,159.07,159.0,15.9771]
[1721091009291,20.0,159.06,159.0,15.9771]
[1721091009486,45.0,159.05,159.01,15.9771]
[1721091009711,20.0,159.04,159.01,15.9771]
[1721091010302,8.3924056,159.11,159.02,6.2806]
[1721091010613,6.2859,159.09,159.02,6.2806]
[1721091010819,25.1354,159.1,159.02,6.2806]
[1721091011120,18.85,159.08,159.02,6.2806]
[1721091011293,6.2874,159.05,159.02,6.2806]
[1721091011617,6.2869,159.06,159.02,6.2806]
[1721091011821,25.1365,159.07,159.02,6.2806]
[1721091012119,18.85,159.06,159.02,6.2806]
[1721091012719,6.2881,159.04,159.02,6.2806]
[1721091013396,25.1381,159.04,159.01,15.9771]
[1721091013709,15.7144,159.09,159.01,15.9771]
[1721091013710,6.2873,159.05,159.01,15.9771]
[1721091013918,38.85,159.04,159.01,15.9771]
[1721091014119,45.1378,159.04,159.01,15.9771]
[1721091016718,20.0,159.04,159.01,15.9771]
[1721091016922,20.0,159.05,159.01,15.9771]
[1721091017618,20.0,159.06,159.01,15.9771]
[1721091017922,18.85,159.09,159.01,15.9771]
[1721091018213,6.2862,159.08,159.02,6.0874]
[1721091018515,6.287,159.06,159.02,6.0874]
[1721091019798,25.1363,159.08,159.02,6.0874]
[1721091020125,20.0,159.07,159.02,6.0874]
[1721091020321,25.1373,159.06,159.02,6.0874]
[1721091020820,20.0,159.07,159.02,6.0874]
[1721091021019,26.2868,159.07,159.02,6.0874]
[1721091021194,6.2869,159.06,159.02,6.0874]
[1721091022021,6.2877,159.04,159.02,6.0874]
[1721091022614,6.2873,159.05,159.02,6.0874]
[1721091023021,25.137,159.06,159.02,6.0874]
[1721091023209,18.85,159.06,159.02,6.0874]
[1721091023621,25.1369,159.06,159.02,6.0874]
[1721091024297,18.85,159.06,159.02,6.0874]
[1721091024533,20.0,159.07,159.02,6.0874]
[1721091025623,26.2866,159.07,159.02,6.0874]
[1721091027629,20.0,159.07,159.02,6.0874]
[1721091028098,26.2862,159.08,159.02,6.0874]
[1721091028299,15.21,159.07,159.02,21.2974]
[1721091028714,21.4966,159.07,159.02,6.0874]
[1721091028935,15.21,159.06,159.02,6.0874]
[1721091029430,38.85,159.08,159.02,6.0874]
[1721091029719,15.21,159.03,159.01,15.9771]
[1721091029929,18.85,159.03,159.01,15.9771]
[1721091030223,6.2891,159.01,158.98,6.4845]
[1721091030820,18.85,159.03,158.97,15.8444]
[1721091031127,6.2897,158.99,158.97,15.8444]
[1721091031326,6.2893,159.0,158.97,15.8444]
[1721091031532,6.2899,158.99,158.97,15.8444]
[1721091032214,25.1399,158.99,158.97,15.8444]
[1721091032608,38.85,158.98,158.94,0.8200528]
[1721091032935,45.1404,158.98,158.94,0.8200528]
[1721091033312,6.2905,158.97,158.94,0.8200528]
[1721091033939,38.85,158.98,158.94,0.8200528]
[1721091034513,45.1401,158.98,158.94,0.8200528]
[1721091034928,6.2906,158.97,158.94,0.8200528]
[1721091035311,6.291,158.96,158.94,0.8200528]
[1721091035735,6.2912,158.95,158.94,0.8200528]
[1721091035912,6.2907,158.97,158.94,0.8200528]
[1721091036111,31.71363506,158.97,158.94,0.8200528]
[1721091037105,6.57293506,158.97,158.94,0.8200528]
[1721091038415,12.86363506,158.97,158.94,0.8200528]
[1721091038906,6.2912,158.95,158.94,0.8200528]
[1721091039112,25.1412,158.95,158.94,0.8200528]
[1721091040533,6.2912,158.95,158.94,0.8200528]
[1721091040738,12.86363506,158.97,158.94,0.8200528]
[1721091040939,26.2909,158.96,158.94,0.8200528]
[1721091041233,6.2912,158.95,158.94,0.8200528]
[1721091041616,26.2909,158.96,158.94,0.8200528]
[1721091041815,25.1412,158.95,158.94,0.8200528]
[1721091042240,45.1412,158.95,158.94,0.8200528]
[1721091046539,51.71568027,158.95,158.94,0.8200528]
[1721091047320,32.86568027,158.95,158.94,0.8200528]
[1721091047941,6.57448027,158.95,158.94,0.8200528]
[1721091048737,12.86568027,158.95,158.94,0.8200528]
[1721091048932,6.57448027,158.95,158.94,0.8200528]
[1721091049141,26.57448027,158.95,158.94,0.8200528]
[1721091049440,32.86568027,158.95,158.94,0.8200528]
[1721091051032,26.57448027,158.95,158.94,0.8200528]
[1721091051722,6.57448027,158.95,158.94,0.8200528]
[1721091052329,12.86568027,158.95,158.94,0.8200528]
[1721091053638,31.71568027,158.95,158.94,0.8200528]
[1721091053854,51.71568027,158.95,158.94,0.8200528]
[1721091054947,96.71568027,158.95,158.94,0.8200528]
[1721091056052,26.57448027,158.95,158.94,0.8200528]
[1721091056556,51.71568027,158.95,158.94,0.8200528]
[1721091057755,26.57448027,158.95,158.94,0.8200528]
[1721091058145,20.0,158.95,158.94,0.8200528]
[1721091058543,26.2912,158.95,158.94,0.8200528]
[1721091058736,45.1412,158.95,158.94,0.8200528]
[1721091060647,120.5812,158.95,158.94,0.8200528]
[1721091060850,120.5812,158.95,158.94,5.28e-05]
[1721091062361,130.5812,158.95,158.94,5.28e-05]
[1721091063058,100.1412,158.95,158.94,5.28e-05]
[1721091064143,18.85,158.86,158.84,16.5059]
[1721091064660,25.1443,158.88,158.84,16.5059]
[1721091064960,45.1446,158.87,158.84,16.5059]
[1721091065166,25.145,158.86,158.84,16.5059]
[1721091065452,6.2952,158.85,158.84,16.5059]
[1721091065670,26.2952,158.85,158.84,16.5059]
[1721091066736,6.2957,158.84,158.8,15.2135]
[1721091066935,20.0,158.83,158.8,15.2135]
[1721091070258,26.296,158.83,158.8,15.2135]
[1721091071145,20.0,158.83,158.8,15.2135]
[1721091074473,35.25,158.83,158.8,15.2135]
[1721091075038,60.3961,158.83,158.8,15.2135]
[1721091075245,15.25,158.81,158.8,15.2135]
[1721091075447,15.25,158.81,158.78,7.4272528]
[1721091076341,15.25,158.8,158.78,7.4272528]
[1721091077171,15.25,158.8,158.78,0.8200528]
[1721091077468,15.25,158.79,158.78,0.8200528]
[1721091077670,15.25,158.8,158.78,0.8200528]
[1721091079961,15.25,158.79,158.78,0.8200528]
[1721091082855,60.3976,158.79,158.78,0.8200528]
[1721091083267,45.1476,158.79,158.78,0.8200528]
[1721091083469,60.3976,158.79,158.78,0.8200528]
[1721091085367,105.3976,158.79,158.78,0.8200528]
[1721091087313,25.15,158.73,158.71,15.7077]
[1721091087586,60.4004,158.72,158.67,15.7943]
[1721091087768,15.25,158.69,158.67,15.7943]
[1721091088958,25.1508,158.71,158.67,15.7943]
[1721091088959,15.25,158.68,158.67,15.7943]
[1721091090166,18.85,158.67,158.63,15.7943]
[1721091090566,38.85,158.66,158.63,15.7943]
[1721091090865,45.1531,158.66,158.62,0.8200528]
[1721091091081,25.1531,158.65,158.62,0.8200528]
[1721091091385,20.0,158.64,158.62,0.8200528]
[1721091091569,38.94,158.66,158.62,0.8200528]
[1721091092088,6.52251235,158.71,158.62,0.8200528]
[1721091092300,25.46251235,158.71,158.64,6.5934]
[1721091093186,6.52251235,158.71,158.65,1.26042671]
[1721091093483,6.52251235,158.71,158.64,6.5934]
[1721091094584,6.52251235,158.71,158.65,45.0]
[1721091094781,6.52251235,158.71,158.66,15.2797]
[1721091098667,6.3012,158.7,158.66,15.2797]
[1721091099674,18.94,158.69,158.66,15.2797]
[1721091099869,18.94,158.69,158.64,6.5934]
[1721091100093,20.0,158.68,158.62,16.7954528]
[1721091100295,25.2428,158.66,158.62,16.7954528]
[1721091101093,25.2432,158.65,158.62,16.7954528]
[1721091101373,25.2439,158.63,158.62,0.8200528]
[1721091101679,45.2439,158.63,158.62,0.8200528]
[1721091101998,20.0,158.63,158.62,0.8200528]
[1721091103304,18.94,158.67,158.62,0.8200528]
[1721091103479,6.531047,158.68,158.62,0.8200528]
[1721091104401,6.531047,158.68,158.63,16.35]
[1721091104581,6.3008,158.71,158.64,6.5191]
[1721091104782,6.51667652,158.72,158.64,6.5191]
[1721091106492,18.94,158.74,158.64,6.5191]
[1721091106493,25.2396,158.74,158.64,6.5191]
[1721091106703,20.0,158.73,158.64,6.5191]
[1721091106998,31.75139508,158.74,158.64,6.5191]
[1721091107200,25.45179508,158.74,158.64,37.0891]
[1721091107376,6.51179508,158.74,158.7,30.57]
[1721091107699,18.94,158.79,158.71,16.6545]
[1721091107903,25.45061627,158.79,158.71,16.6545]
[1721091108289,18.94,158.78,158.71,17.91453309]
[1721091108490,25.238,158.78,158.71,16.6545]
[1721091108688,6.2984,158.77,158.71,16.6545]
[1721091109005,38.94,158.76,158.71,16.6545]
[1721091109382,38.94,158.76,158.71,16.1545]
[1721091109701,20.0,158.76,158.71,16.1545]
[1721091110001,38.94,158.78,158.71,16.1545]
[1721091110189,6.51061627,158.79,158.71,16.1545]
[1721091110706,47.7534,158.89,158.71,16.1545]
[1721091110903,12.80581086,158.82,158.71,16.1545]
[1721091111207,47.7534,158.89,158.71,16.1545]
[1721091111208,25.2369,158.81,158.71,16.1545]
[1721091111405,31.74716343,158.81,158.71,16.1545]
[1721091112195,6.51026343,158.81,158.71,16.1545]
[1721091112401,25.45026343,158.81,158.72,45.0]
[1721091112698,25.45026343,158.81,158.71,16.1545]
[1721091112876,31.74706343,158.81,158.71,16.1545]
[1721091113083,25.45026343,158.81,158.71,16.1545]
[1721091113407,31.74706343,158.81,158.71,16.1545]
[1721091114112,6.2972,158.8,158.71,16.1545]
[1721091114280,18.94,158.79,158.71,16.1545]
[1721091114482,25.2384,158.77,158.71,16.1545]
[1721091115201,18.94,158.8,158.71,16.1545]
[1721091115386,6.51026343,158.81,158.71,16.1545]
[1721091115893,6.51026343,158.81,158.72,75.57]
[1721091116303,25.45026343,158.81,158.72,75.57]
[1721091116593,31.74716343,158.81,158.72,30.57]
[1721091116998,6.51026343,158.81,158.72,30.57]
[1721091117333,6.51026343,158.81,158.74,6.2069]
[1721091120712,6.2984,158.77,158.71,16.1545]
[1721091120920,6.298,158.78,158.71,16.1545]
[1721091121120,20.0,158.76,158.71,16.1545]
[1721091122902,12.80012779,158.78,158.71,16.1545]
[1721091122903,6.50212779,158.78,158.71,16.1545]
[1721091123100,36.6525,158.86,158.71,16.1545]
[1721091123299,6.296,158.83,158.71,16.1545]
[1721091123501,12.80394752,158.82,158.72,45.0]
[1721091123702,6.296,158.83,158.72,45.0]
[1721091124014,25.42466716,158.82,158.72,45.0]
[1721091124218,25.42466716,158.82,158.73,30.57]
[1721091124598,25.42466716,158.82,158.74,0.44871731]
[1721091125415,31.72106716,158.82,158.73,30.57]
[1721091125617,6.2976,158.79,158.71,16.1545]
[1721091126325,18.94,158.77,158.71,16.1545]
[1721091127418,18.94,158.79,158.71,16.1545]
[1721091127619,90.2382,158.78,158.71,16.1545]
[1721091128195,18.94,158.77,158.71,16.1545]
[1721091128402,6.2992,158.75,158.71,16.1545]
[1721091128705,25.2388,158.77,158.71,16.1545]
[1721091129004,18.94,158.77,158.71,16.1545]
[1721091129400,18.94,158.75,158.71,16.1545]
[1721091129601,20.0,158.74,158.71,16.1545]
[1721091131502,18.94,158.78,158.71,16.1545]
[1721091131901,25.2388,158.76,158.71,16.1545]
[1721091132603,6.2988,158.76,158.71,16.1545]
[1721091132807,25.2383,158.78,158.71,16.1545]
[1721091133205,18.94,158.81,158.71,16.1545]
[1721091133416,25.2376,158.8,158.71,16.1545]
[1721091133730,6.2979,158.79,158.71,16.1545]
[1721091134230,6.48310726,158.8,158.72,45.0]
[1721091134610,6.48310726,158.8,158.72,75.57]
[1721091134823,6.48310726,158.8,158.73,20.0]
[1721091135432,6.48310726,158.8,158.74,1.259596]
[1721091135630,6.48310726,158.8,158.75,21.9427]
[1721091135818,6.48310726,158.8,158.76,1.25944621]
[1721091136013,6.48310726,158.8,158.76,45.0]
[1721091137412,6.48310726,158.8,158.75,52.5127]
[1721091137607,6.48310726,158.8,158.76,45.0]
[1721091137940,6.48310726,158.8,158.75,52.5127]
[1721091138512,6.48310726,158.8,158.75,21.9427]
[1721091140210,6.48310726,158.8,158.75,52.5127]
[1721091140419,6.48310726,158.8,158.76,45.81868247]
[1721091140713,6.2941,158.88,158.77,0.8186309]
[1721091141120,6.50666799,158.87,158.77,0.8186309]
[1721091141424,6.2946,158.87,158.77,0.8186309]
[1721091141627,20.0,158.86,158.77,0.8186309]
[1721091142214,6.50750725,158.87,158.78,30.57]
[1721091142410,6.294,158.89,158.79,45.81852872]
[1721091142622,25.234,158.89,158.8,0.81847717]
[1721091143534,12.76914214,158.9,158.82,6.4142]
[1721091143734,31.70914214,158.9,158.82,7.23252257]
[1721091143930,12.76914214,158.9,158.83,0.81848189]
[1721091144316,6.47584214,158.9,158.83,0.81848189]
[1721091146226,6.292,158.93,158.83,65.0]
[1721091146742,6.2934,158.9,158.82,6.4142]
[1721091147244,18.94,158.9,158.82,6.4142]
[1721091147449,20.0,158.89,158.82,6.4142]
[1721091148442,6.2945,158.87,158.82,6.4142]
[1721091148744,6.2939,158.89,158.82,6.4142]
[1721091149731,6.2939,158.89,158.82,6.96408011]
[1721091150242,25.4300634,158.92,158.83,0.54984548]
[1721091150442,6.2932,158.9,158.83,0.54984548]
[1721091150616,25.2332,158.9,158.82,6.4142]
[1721091150816,6.2938,158.89,158.82,6.4142]
[1721091151625,6.294,158.88,158.82,6.4142]
[1721091152022,6.2937,158.89,158.82,6.4142]
[1721091152323,25.2333,158.9,158.82,6.4142]
[1721091152637,26.2929,158.91,158.82,6.4142]
[1721091153040,45.2329,158.91,158.82,6.4142]
[1721091153940,6.4900634,158.92,158.82,36.9842]
[1721091154139,6.4900634,158.92,158.83,0.43201691]
[1721091154322,25.4300634,158.92,158.83,0.43201691]
[1721091154526,31.7228634,158.92,158.82,36.9842]
[1721091155025,6.4900634,158.92,158.83,65.41611424]
[1721091155227,6.4900634,158.92,158.85,30.57]
[1721091155547,6.4900634,158.92,158.86,0.41603565]
[1721091155720,30.57,158.99,158.87,6.243]
[1721091155721,6.2905,158.97,158.87,6.243]
[1721091156140,6.50271155,158.95,158.87,6.243]
[1721091156322,6.50271155,158.95,158.88,45.0]
[1721091156734,6.50271155,158.95,158.87,6.243]
[1721091157135,12.79431155,158.95,158.87,6.243]
[1721091157334,31.73431155,158.95,158.87,6.243]
[1721091157544,6.292,158.94,158.87,6.243]
[1721091157744,25.44271155,158.95,158.87,6.243]
[1721091157745,6.2921,158.93,158.87,6.243]
[1721091158427,6.2929,158.91,158.84,16.1]
[1721091158633,25.2329,158.91,158.84,16.1]
[1721091158840,6.2941,158.88,158.84,16.1]
[1721091159061,18.94,158.9,158.84,16.1]
[1721091159062,25.2334,158.9,158.84,16.1]
[1721091159556,25.2338,158.89,158.84,16.1]
[1721091159727,18.94,158.89,158.84,16.1]
[1721091160328,25.2326,158.92,158.84,16.1]
[1721091160553,38.94,158.91,158.84,16.1]
[1721091161141,25.2335,158.9,158.84,16.1]
[1721091161346,18.94,158.89,158.84,16.1]
[1721091162154,6.2952,158.85,158.8,15.2512]
[1721091162451,18.94,158.87,158.8,15.2512]
[1721091162654,26.2948,158.86,158.8,15.2512]
[1721091163256,6.2954,158.85,158.8,15.2512]
[1721091163630,25.2354,158.85,158.8,15.2512]
[1721091164658,6.2961,158.83,158.75,22.3054]
[1721091164873,6.2964,158.82,158.75,22.3054]
[1721091165637,18.94,158.83,158.75,22.3054]
[1721091165835,25.2361,158.83,158.75,22.3054]
[1721091166244,6.46288262,158.82,158.75,22.3054]
[1721091168072,20.0,158.81,158.75,16.016]
[1721091168255,26.2969,158.81,158.75,16.016]
[1721091169367,18.94,158.8,158.71,22.194]
[1721091169550,6.46288262,158.82,158.71,22.194]
[1721091169551,6.2984,158.77,158.71,22.194]
[1721091170153,25.238,158.78,158.71,22.194]
[1721091172756,18.94,158.78,158.71,22.194]
[1721091173573,71.2976,158.79,158.71,22.194]
[1721091173773,18.94,158.78,158.71,22.194]
[1721091174755,25.2387,158.77,158.71,22.194]
[1721091175777,25.239,158.76,158.71,22.194]
[1721091175965,45.2393,158.75,158.68,6.4124]
[1721091176160,6.2997,158.74,158.68,6.4124]
[1721091176563,6.45799436,158.73,158.68,6.4124]
[1721091180569,18.94,158.76,158.68,6.4124]
[1721091180777,83.94,158.75,158.68,6.4124]
[1721091181171,20.0,158.75,158.68,6.4124]
[1721091181371,6.48979432,158.76,158.68,6.4124]
[1721091182275,12.78859432,158.76,158.68,6.4124]
[1721091182776,6.48979432,158.76,158.68,6.4124]
[1721091184262,12.78859432,158.76,158.68,6.4124]
[1721091184461,6.48979432,158.76,158.68,6.4124]
[1721091186875,25.2399,158.74,158.68,6.4124]
[1721091187179,18.94,158.74,158.67,16.2586]
[1721091187382,6.48979432,158.76,158.67,16.2586]
[1721091187383,18.94,158.72,158.67,16.2586]
[1721091188451,18.94,158.74,158.67,16.2586]
[1721091188679,18.94,158.72,158.67,16.2586]
[1721091189570,70.24,158.73,158.67,16.2586]
[1721091189967,18.94,158.71,158.67,16.2586]
[1721091191270,25.2409,158.71,158.67,16.2586]
[1721091191468,20.0,158.7,158.67,16.2586]
[1721091192411,38.94,158.7,158.67,16.2586]
[1721091192578,45.2412,158.7,158.67,16.2586]
[1721091192770,45.2412,158.7,158.64,6.0539]
[1721091193879,45.2412,158.7,158.63,15.8353]
[1721091193880,25.2416,158.69,158.63,15.8353]
[1721091194468,6.4931809,158.68,158.63,15.8353]
[1721091194675,25.4331809,158.68,158.63,15.8353]
[1721091194870,20.0,158.67,158.63,15.8353]
[1721091195678,18.94,158.66,158.63,15.8353]
[1721091196288,25.2427,158.66,158.62,0.8200528]
[1721091197175,20.0,158.67,158.62,0.8200528]
[1721091197176,25.2433,158.65,158.62,0.8200528]
[1721091197482,18.94,158.65,158.62,0.8200528]
[1721091197674,25.2435,158.65,158.62,0.8200528]
[1721091200684,6.3037,158.64,158.62,0.8200528]
[1721091200883,63.94,158.63,158.62,0.8200528]
[1721091202290,18.94,158.65,158.62,0.8200528]
[1721091202992,25.2433,158.65,158.62,0.8200528]
[1721091203374,6.4931809,158.68,158.62,0.8200528]
[1721091203693,6.4931809,158.68,158.62,7.1379528]
[1721091204796,38.94,158.67,158.62,7.1379528]
[1721091204997,45.2424,158.67,158.62,0.8200528]
[1721091205183,20.0,158.67,158.62,0.8200528]
[1721091205376,30.57,158.7,158.62,0.8200528]
[1721091205377,20.0,158.69,158.62,0.8200528]
[1721091205578,6.48254405,158.66,158.62,0.8200528]
[1721091205777,6.3024,158.67,158.62,0.8200528]
[1721091205988,6.4733998,158.66,158.62,0.8200528]
[1721091206177,25.4133998,158.66,158.62,0.8200528]
[1721091207902,25.2437,158.64,158.62,0.8200528]
[1721091209115,25.2439,158.63,158.62,0.8200528]
[1721091209275,90.2439,158.63,158.62,0.8200528]
[1721091210701,106.0038,158.63,158.62,0.8200528]
[1721091212206,116.0038,158.63,158.62,0.8200528]
[1721091215108,116.0038,158.63,158.62,5.28e-05]
[1721091215486,6.3069,158.56,158.5,16.5832]
[1721091215691,18.94,158.55,158.5,16.5832]
[1721091216093,6.3079,158.53,158.5,16.5832]
[1721091216298,25.2479,158.53,158.5,16.5832]
[1721091217112,25.2479,158.53,158.48,6.2685]
[1721091217113,90.2485,158.52,158.48,6.2685]
[1721091217318,6.3088,158.51,158.46,16.9380528]
[1721091217614,65.0,158.5,158.46,16.9380528]
[1721091217996,71.3091,158.5,158.46,16.9380528]
[1721091218207,71.3092,158.5,158.46,16.9380528]
[1721091218799,6.3096,158.49,158.46,16.9380528]
[1721091219089,6.3096,158.49,158.46,0.8200528]
[1721091219302,90.2491,158.5,158.46,0.8200528]
[1721091219700,65.0,158.5,158.46,0.8200528]
[1721091220215,90.2493,158.5,158.46,0.8200528]
[1721091220520,83.94,158.5,158.46,0.8200528]
[1721091220722,6.3103,158.48,158.46,0.8200528]
[1721091221596,6.3095,158.49,158.46,0.8200528]
[1721091221808,20.0,158.48,158.46,0.8200528]
[1721091222008,90.2491,158.5,158.46,0.8200528]
[1721091222911,6.3097,158.49,158.46,0.8200528]
[1721091223111,6.3103,158.47,158.46,0.8200528]
[1721091223719,71.3103,158.47,158.46,0.8200528]
[1721091224519,65.0,158.47,158.46,0.8200528]
[1721091225391,20.0,158.47,158.46,0.8200528]
[1721091225998,65.0,158.47,158.46,0.8200528]
[1721091226199,71.3103,158.47,158.46,0.8200528]
[1721091226693,77.80200712,158.47,158.46,0.8200528]
[1721091226990,6.49170712,158.47,158.46,0.8200528]
[1721091227428,25.2499,158.49,158.46,0.8200528]
[1721091227616,31.740861,158.48,158.46,0.8200528]
[1721091227804,6.490761,158.48,158.46,0.8200528]
[1721091228418,20.0,158.47,158.46,0.8200528]
[1721091228994,6.490761,158.48,158.47,15.9186]
[1721091229217,26.490761,158.48,158.47,15.9186]
[1721091229832,6.490761,158.48,158.47,15.9186]
[1721091229999,18.94,158.52,158.47,15.9186]
[1721091230325,31.73534581,158.51,158.47,15.9186]
[1721091230522,6.3094,158.5,158.47,15.9186]
[1721091230724,6.48634581,158.51,158.47,15.9186]
[1721091231097,45.0,158.5,158.47,15.9186]
[1721091231494,6.48634581,158.51,158.47,22.2288]
[1721091231797,20.0,158.5,158.47,15.9186]
[1721091232531,12.79514581,158.51,158.47,15.9186]
[1721091232822,6.48634581,158.51,158.47,17.17599058]
[1721091233002,6.48634581,158.51,158.48,6.5863]
[1721091233205,6.3065,158.57,158.51,6.3084]
[1721091233514,6.49127849,158.54,158.51,6.3084]
[1721091233721,6.3075,158.54,158.49,6.3095]
[1721091234108,12.79637924,158.54,158.49,6.3095]
[1721091234423,6.48887924,158.54,158.48,6.5863]
[1721091234628,6.3088,158.51,158.48,6.5863]
[1721091235126,6.3084,158.52,158.48,6.5863]
[1721091235300,18.94,158.53,158.48,6.5863]
[1721091235501,71.3085,158.52,158.48,6.5863]
[1721091236316,6.3089,158.51,158.47,15.9186]
[1721091236523,26.3091,158.5,158.47,15.9186]
[1721091237221,6.31,158.48,158.46,0.8200528]
[1721091237624,6.3095,158.49,158.46,0.8200528]
[1721091237922,20.0,158.5,158.46,0.8200528]
[1721091238219,51.3087,158.52,158.46,0.8200528]
[1721091238220,20.0,158.51,158.46,0.8200528]
[1721091238602,6.3095,158.49,158.46,0.8200528]
[1721091238799,70.2492,158.5,158.46,0.8200528]
[1721091239014,20.0,158.49,158.46,0.8200528]
[1721091240602,20.0,158.5,158.46,0.8200528]
[1721091241609,6.3091,158.5,158.46,0.8200528]
[1721091241809,20.0,158.49,158.46,0.8200528]
[1721091242441,20.0,158.49,158.46,7.1306528]
[1721091242631,38.94,158.53,158.46,7.1306528]
[1721091242802,6.3088,158.51,158.46,7.1306528]
[1721091243000,6.48887924,158.54,158.47,1.26203552]
[1721091243229,6.48887924,158.54,158.48,16.3635]
[1721091243434,6.308,158.53,158.48,22.6732]